[Event "Late-Titled-Tuesday-Blitz-February-27-2024"]
[Site "Chess.com"]
[Date "2024.02.27"]
[Round "8"]
[White "Andreikka"]
[Black "SpeedofLight0"]
[Result "0-1"]
[WhiteElo "2954"]
[BlackElo "3068"]
[TimeControl "180+1"]
[EndTime "15:27:40 PST"]
[Termination "SpeedofLight0 won on time"]

1. e4 {[%clk 0:03:00.1]} 1... Nc6 {[%clk 0:02:59.8]} 2. Nf3 {[%clk 0:02:59.3]}
2... d6 {[%clk 0:02:59.9]} 3. d4 {[%clk 0:02:58.6]} 3... Nf6 {[%clk 0:02:59.9]}
4. Nc3 {[%clk 0:02:58]} 4... g6 {[%clk 0:03:00.2]} 5. h3 {[%clk 0:02:57.3]} 5...
Bg7 {[%clk 0:03:00.1]} 6. Be2 {[%clk 0:02:57.2]} 6... O-O {[%clk 0:03:00.1]} 7.
O-O {[%clk 0:02:57.6]} 7... e5 {[%clk 0:03:00.2]} 8. dxe5 {[%clk 0:02:54.6]}
8... Nxe5 {[%clk 0:03:01.1]} 9. Be3 {[%clk 0:02:45.8]} 9... Bd7 {[%clk
0:02:57.2]} 10. Re1 {[%clk 0:02:43.5]} 10... Bc6 {[%clk 0:02:54.2]} 11. Nd2
{[%clk 0:02:36.8]} 11... Re8 {[%clk 0:02:52.4]} 12. a4 {[%clk 0:02:34.3]} 12...
d5 {[%clk 0:02:48.9]} 13. exd5 {[%clk 0:01:55.7]} 13... Nxd5 {[%clk 0:02:49.8]}
14. Nxd5 {[%clk 0:01:55.2]} 14... Qxd5 {[%clk 0:02:50.7]} 15. Bf1 {[%clk
0:01:55]} 15... Rad8 {[%clk 0:02:45.1]} 16. Qb1 {[%clk 0:01:52.4]} 16... a5
{[%clk 0:02:24.8]} 17. Qa2 {[%clk 0:01:48.3]} 17... Qxa2 {[%clk 0:02:02.1]} 18.
Rxa2 {[%clk 0:01:47.1]} 18... Nd7 {[%clk 0:02:03]} 19. Bb5 {[%clk 0:01:37.9]}
19... Bxb5 {[%clk 0:01:56.5]} 20. axb5 {[%clk 0:01:37.9]} 20... Nb6 {[%clk
0:01:48.3]} 21. Nf3 {[%clk 0:01:31.3]} 21... Nc4 {[%clk 0:01:45.8]} 22. c3
{[%clk 0:01:23.5]} 22... Nxb2 {[%clk 0:01:18.5]} 23. Rxb2 {[%clk 0:01:18.4]}
23... Bxc3 {[%clk 0:01:18.9]} 24. Rc2 {[%clk 0:01:16.9]} 24... Bxe1 {[%clk
0:01:18.4]} 25. Nxe1 {[%clk 0:01:17.2]} 25... Rd1 {[%clk 0:01:12.9]} 26. Kf1
{[%clk 0:01:16.2]} 26... a4 {[%clk 0:01:13]} 27. Ra2 {[%clk 0:00:59.7]} 27...
Ra8 {[%clk 0:01:12.4]} 28. b6 {[%clk 0:00:46.6]} 28... cxb6 {[%clk 0:01:06.2]}
29. Bxb6 {[%clk 0:00:34.1]} 29... Rb1 {[%clk 0:01:05.4]} 30. Bd4 {[%clk
0:00:31.9]} 30... b5 {[%clk 0:01:05.1]} 31. Ke2 {[%clk 0:00:31.5]} 31... b4
{[%clk 0:01:03.8]} 32. Nd3 {[%clk 0:00:26.4]} 32... a3 {[%clk 0:00:59.1]} 33.
Bc5 {[%clk 0:00:24.8]} 33... Re8+ {[%clk 0:00:27.5]} 34. Kd2 {[%clk 0:00:24.7]}
34... Rd8 {[%clk 0:00:27.9]} 35. Ke2 {[%clk 0:00:20.4]} 35... Rb3 {[%clk
0:00:21.7]} 36. Rd2 {[%clk 0:00:09.4]} 36... Re8+ {[%clk 0:00:04.3]} 37. Kf3
{[%clk 0:00:02.7]} 37... a2 {[%clk 0:00:03.8]} 38. Bd4 {[%clk 0:00:02.4]} 38...
Ra8 {[%clk 0:00:03]} 39. Rd1 {[%clk 0:00:01.4]} 39... Rb1 {[%clk 0:00:03.1]} 40.
Rd2 {[%clk 0:00:01.6]} 40... b3 {[%clk 0:00:02.7]} 41. Ke4 {[%clk 0:00:01.3]}
41... a1=Q {[%clk 0:00:02.4]} 42. Bxa1 {[%clk 0:00:01.4]} 42... Raxa1 {[%clk
0:00:03.2]} 0-1

[Event "Late-Titled-Tuesday-Blitz-February-27-2024"]
[Site "Chess.com"]
[Date "2024.02.27"]
[Round "8"]
[White "EvilMorty23"]
[Black "sergiochess83"]
[Result "0-1"]
[WhiteElo "2585"]
[BlackElo "2894"]
[TimeControl "180+1"]
[EndTime "15:27:40 PST"]
[Termination "sergiochess83 won by checkmate"]

1. e4 {[%clk 0:03:00.9]} 1... e6 {[%clk 0:02:56.6]} 2. d4 {[%clk 0:03:00.2]}
2... d5 {[%clk 0:02:56.3]} 3. Nd2 {[%clk 0:03:00.5]} 3... c5 {[%clk 0:02:48.2]}
4. Ngf3 {[%clk 0:03:00.4]} 4... cxd4 {[%clk 0:02:38.1]} 5. exd5 {[%clk
0:02:58.2]} 5... Qxd5 {[%clk 0:02:35.1]} 6. Bc4 {[%clk 0:02:58.3]} 6... Qd7
{[%clk 0:02:34.5]} 7. O-O {[%clk 0:02:59.2]} 7... Nc6 {[%clk 0:02:32.3]} 8. Nb3
{[%clk 0:02:59.4]} 8... a6 {[%clk 0:02:31.3]} 9. Nbxd4 {[%clk 0:02:59.5]} 9...
Nxd4 {[%clk 0:02:29.8]} 10. Nxd4 {[%clk 0:03:00.4]} 10... Nf6 {[%clk 0:02:27.4]}
11. Re1 {[%clk 0:02:58.7]} 11... Qc7 {[%clk 0:02:22.5]} 12. Qe2 {[%clk
0:02:57.9]} 12... Bc5 {[%clk 0:02:14]} 13. Nf5 {[%clk 0:01:52.6]} 13... O-O
{[%clk 0:02:10.5]} 14. Ng3 {[%clk 0:01:51.9]} 14... h6 {[%clk 0:01:14.5]} 15.
Bd3 {[%clk 0:01:47.1]} 15... Bd7 {[%clk 0:01:07.6]} 16. Nh5 {[%clk 0:01:35.4]}
16... Bxf2+ {[%clk 0:00:57.2]} 17. Kxf2 {[%clk 0:01:30.6]} 17... Qc5+ {[%clk
0:00:55.4]} 18. Be3 {[%clk 0:01:27.6]} 18... Qxh5 {[%clk 0:00:55.9]} 19. Qxh5
{[%clk 0:01:15.9]} 19... Nxh5 {[%clk 0:00:56.8]} 20. Be4 {[%clk 0:01:15.5]}
20... Bc6 {[%clk 0:00:57]} 21. Bxc6 {[%clk 0:01:12.2]} 21... bxc6 {[%clk
0:00:57.9]} 22. Rad1 {[%clk 0:01:09.7]} 22... Nf6 {[%clk 0:00:54.2]} 23. c4
{[%clk 0:01:08.8]} 23... Rfd8 {[%clk 0:00:39.2]} 24. b3 {[%clk 0:01:05.7]} 24...
Ng4+ {[%clk 0:00:34]} 25. Kf3 {[%clk 0:01:03]} 25... Nxe3 {[%clk 0:00:34.1]} 26.
Kxe3 {[%clk 0:01:03.9]} 26... Kf8 {[%clk 0:00:33.9]} 27. Ke4 {[%clk 0:00:39.3]}
27... Ke7 {[%clk 0:00:33.8]} 28. Ke5 {[%clk 0:00:39.7]} 28... f6+ {[%clk
0:00:28.7]} 29. Ke4 {[%clk 0:00:39.6]} 29... c5 {[%clk 0:00:28.3]} 30. Ke3
{[%clk 0:00:36.8]} 30... a5 {[%clk 0:00:26.2]} 31. Rxd8 {[%clk 0:00:35.4]} 31...
Rxd8 {[%clk 0:00:25.8]} 32. Re2 {[%clk 0:00:33]} 32... h5 {[%clk 0:00:24.3]} 33.
h4 {[%clk 0:00:32.2]} 33... e5 {[%clk 0:00:23.8]} 34. g3 {[%clk 0:00:31.9]}
34... Ke6 {[%clk 0:00:24]} 35. Rb2 {[%clk 0:00:30.5]} 35... Rd4 {[%clk
0:00:23.2]} 36. Rf2 {[%clk 0:00:27.6]} 36... f5 {[%clk 0:00:19.1]} 37. Rf1
{[%clk 0:00:27.4]} 37... g6 {[%clk 0:00:16.9]} 38. Rc1 {[%clk 0:00:27]} 38...
Kf6 {[%clk 0:00:13.9]} 39. Rf1 {[%clk 0:00:27]} 39... e4 {[%clk 0:00:13.2]} 40.
Rf2 {[%clk 0:00:20.7]} 40... Ke5 {[%clk 0:00:12.8]} 41. Rc2 {[%clk 0:00:19.1]}
41... Rd3+ {[%clk 0:00:12.6]} 42. Kf2 {[%clk 0:00:19.6]} 42... Kd4 {[%clk
0:00:12.4]} 43. Kg2 {[%clk 0:00:19.2]} 43... Ke3 {[%clk 0:00:07.1]} 44. Kf1
{[%clk 0:00:16.2]} 44... Rd1+ {[%clk 0:00:06.5]} 45. Kg2 {[%clk 0:00:16.3]}
45... Rd2+ {[%clk 0:00:07]} 46. Rxd2 {[%clk 0:00:16.9]} 46... Kxd2 {[%clk
0:00:07.6]} 47. a3 {[%clk 0:00:16.7]} 47... e3 {[%clk 0:00:08.1]} 48. b4 {[%clk
0:00:15.5]} 48... e2 {[%clk 0:00:09]} 49. bxc5 {[%clk 0:00:15.3]} 49... e1=Q
{[%clk 0:00:09.6]} 50. c6 {[%clk 0:00:16.1]} 50... Qe4+ {[%clk 0:00:09.8]} 51.
Kh2 {[%clk 0:00:15.7]} 51... Qxc6 {[%clk 0:00:10.7]} 52. a4 {[%clk 0:00:15.7]}
52... Ke2 {[%clk 0:00:11.2]} 53. c5 {[%clk 0:00:15.9]} 53... Kf2 {[%clk
0:00:11.4]} 54. g4 {[%clk 0:00:14.8]} 54... Qg2# {[%clk 0:00:11.4]} 0-1

[Event "Late-Titled-Tuesday-Blitz-February-27-2024"]
[Site "Chess.com"]
[Date "2024.02.27"]
[Round "8"]
[White "Arystanner"]
[Black "MKlose11"]
[Result "1/2-1/2"]
[WhiteElo "2789"]
[BlackElo "2623"]
[TimeControl "180+1"]
[EndTime "15:27:41 PST"]
[Termination "Game drawn by repetition"]

1. d4 {[%clk 0:03:00.9]} 1... Nf6 {[%clk 0:02:59.5]} 2. c4 {[%clk 0:03:01.4]}
2... c5 {[%clk 0:02:59.5]} 3. d5 {[%clk 0:03:01.5]} 3... b5 {[%clk 0:02:59.4]}
4. cxb5 {[%clk 0:03:02]} 4... a6 {[%clk 0:02:59.9]} 5. bxa6 {[%clk 0:03:02.1]}
5... Bxa6 {[%clk 0:03:00.8]} 6. Nc3 {[%clk 0:03:02.3]} 6... g6 {[%clk 0:03:01]}
7. e4 {[%clk 0:03:02.9]} 7... Bxf1 {[%clk 0:03:00.6]} 8. Kxf1 {[%clk 0:03:01.7]}
8... d6 {[%clk 0:03:01.5]} 9. g3 {[%clk 0:03:01.4]} 9... Bg7 {[%clk 0:03:02.1]}
10. Kg2 {[%clk 0:03:02.2]} 10... O-O {[%clk 0:03:02.7]} 11. Nf3 {[%clk
0:03:01.8]} 11... Nbd7 {[%clk 0:03:01.4]} 12. a4 {[%clk 0:03:00.4]} 12... Qb6
{[%clk 0:03:00.8]} 13. Nb5 {[%clk 0:02:59.1]} 13... Ne8 {[%clk 0:03:01]} 14. Ra3
{[%clk 0:02:58.7]} 14... Nc7 {[%clk 0:03:00.9]} 15. Nxc7 {[%clk 0:02:55]} 15...
Qxc7 {[%clk 0:03:00.4]} 16. b3 {[%clk 0:02:53.5]} 16... Rfb8 {[%clk 0:02:59.7]}
17. Qe2 {[%clk 0:02:46.6]} 17... Qb7 {[%clk 0:02:58.4]} 18. Nd2 {[%clk
0:02:30.9]} 18... Ne5 {[%clk 0:02:38.1]} 19. f4 {[%clk 0:02:30.5]} 19... Nd7
{[%clk 0:02:38.1]} 20. Rd1 {[%clk 0:02:18.7]} 20... Re8 {[%clk 0:02:35.9]} 21.
a5 {[%clk 0:02:15.4]} 21... e6 {[%clk 0:02:31.4]} 22. Nc4 {[%clk 0:02:15.6]}
22... Ra6 {[%clk 0:02:21.9]} 23. Qf3 {[%clk 0:02:08.8]} 23... exd5 {[%clk
0:02:14]} 24. Rxd5 {[%clk 0:02:08.6]} 24... Qc7 {[%clk 0:01:59.2]} 25. Qd3
{[%clk 0:01:57]} 25... Bf8 {[%clk 0:01:45.1]} 26. e5 {[%clk 0:01:55]} 26... Qb7
{[%clk 0:01:33.8]} 27. Kg1 {[%clk 0:01:49.6]} 27... Rea8 {[%clk 0:01:22.5]} 28.
Nxd6 {[%clk 0:01:42.9]} 28... Bxd6 {[%clk 0:01:21.5]} 29. Rxd6 {[%clk
0:01:43.6]} 29... Rxd6 {[%clk 0:01:20.7]} 30. Qxd6 {[%clk 0:01:44.5]} 30... Nf8
{[%clk 0:01:17.3]} 31. a6 {[%clk 0:01:26.1]} 31... Qe4 {[%clk 0:01:16.3]} 32.
Qd2 {[%clk 0:01:24.7]} 32... Qb1 {[%clk 0:00:53.7]} 33. a7 {[%clk 0:01:17.1]}
33... Ne6 {[%clk 0:00:53.4]} 34. Kf2 {[%clk 0:01:13.2]} 34... Nd4 {[%clk
0:00:51.8]} 35. Bb2 {[%clk 0:01:12.1]} 35... Nf5 {[%clk 0:00:42.1]} 36. Ra1
{[%clk 0:01:00.5]} 36... Qe4 {[%clk 0:00:41.6]} 37. e6 {[%clk 0:00:58]} 37...
fxe6 {[%clk 0:00:33.4]} 38. Be5 {[%clk 0:00:51.7]} 38... Nd4 {[%clk 0:00:20.3]}
39. Bxd4 {[%clk 0:00:51.9]} 39... cxd4 {[%clk 0:00:21.2]} 40. b4 {[%clk
0:00:44.2]} 40... d3 {[%clk 0:00:19.3]} 41. Ra3 {[%clk 0:00:39.9]} 41... Qd4+
{[%clk 0:00:17.4]} 42. Qe3 {[%clk 0:00:40.3]} 42... Qb2+ {[%clk 0:00:17.3]} 43.
Kf3 {[%clk 0:00:35.3]} 43... Qxa3 {[%clk 0:00:16.6]} 44. Qxe6+ {[%clk
0:00:35.4]} 44... Kg7 {[%clk 0:00:13.5]} 45. Qe7+ {[%clk 0:00:34.5]} 45... Kh6
{[%clk 0:00:11.6]} 46. Qg5+ {[%clk 0:00:28.6]} 46... Kg7 {[%clk 0:00:11.7]} 47.
Qe5+ {[%clk 0:00:29.2]} 47... Kh6 {[%clk 0:00:11.4]} 48. Qg5+ {[%clk 0:00:19.8]}
48... Kg7 {[%clk 0:00:11.3]} 49. Qe7+ {[%clk 0:00:20.5]} 49... Kh6 {[%clk
0:00:11.6]} 50. Qg5+ {[%clk 0:00:12.5]} 1/2-1/2

[Event "Late-Titled-Tuesday-Blitz-February-27-2024"]
[Site "Chess.com"]
[Date "2024.02.27"]
[Round "8"]
[White "CrushingKings"]
[Black "Matalon"]
[Result "0-1"]
[WhiteElo "2612"]
[BlackElo "2474"]
[TimeControl "180+1"]
[EndTime "15:27:43 PST"]
[Termination "Matalon won by checkmate"]

1. Nf3 {[%clk 0:03:00.9]} 1... Nf6 {[%clk 0:02:55.8]} 2. g3 {[%clk 0:02:59.6]}
2... g6 {[%clk 0:02:55.7]} 3. b3 {[%clk 0:03:00.3]} 3... Bg7 {[%clk 0:02:55.9]}
4. Bb2 {[%clk 0:03:01]} 4... O-O {[%clk 0:02:56.2]} 5. Bg2 {[%clk 0:03:01.6]}
5... d6 {[%clk 0:02:56.9]} 6. d4 {[%clk 0:03:02]} 6... c5 {[%clk 0:02:57.1]} 7.
d5 {[%clk 0:03:01.1]} 7... b5 {[%clk 0:02:48.4]} 8. O-O {[%clk 0:03:00.2]} 8...
Nbd7 {[%clk 0:02:35.5]} 9. c4 {[%clk 0:02:53.7]} 9... bxc4 {[%clk 0:02:28.5]}
10. bxc4 {[%clk 0:02:54.6]} 10... Rb8 {[%clk 0:02:25.6]} 11. Bc3 {[%clk
0:02:51.2]} 11... Nb6 {[%clk 0:02:24.3]} 12. Nbd2 {[%clk 0:02:50.2]} 12... Ba6
{[%clk 0:02:23.3]} 13. Qc2 {[%clk 0:02:45.6]} 13... Qd7 {[%clk 0:02:19.4]} 14.
a4 {[%clk 0:02:35]} 14... Nxc4 {[%clk 0:02:16.5]} 15. Bxf6 {[%clk 0:02:13.9]}
15... Nxd2 {[%clk 0:02:02.2]} 16. Bxg7 {[%clk 0:02:13.9]} 16... Nxf3+ {[%clk
0:02:02.1]} 17. Bxf3 {[%clk 0:02:13.9]} 17... Kxg7 {[%clk 0:02:02.5]} 18. Qc3+
{[%clk 0:02:14.3]} 18... Kg8 {[%clk 0:02:02.3]} 19. h4 {[%clk 0:02:12.5]} 19...
h5 {[%clk 0:01:55.2]} 20. e4 {[%clk 0:02:11.5]} 20... Rb4 {[%clk 0:01:53.9]} 21.
Rfe1 {[%clk 0:02:10.2]} 21... Rfb8 {[%clk 0:01:52.1]} 22. Qd2 {[%clk 0:01:58.5]}
22... Rb2 {[%clk 0:01:35.3]} 23. Qf4 {[%clk 0:01:57.3]} 23... c4 {[%clk
0:01:34.2]} 24. e5 {[%clk 0:01:51.3]} 24... dxe5 {[%clk 0:01:21]} 25. Rxe5
{[%clk 0:01:51.2]} 25... Rb1+ {[%clk 0:01:15.8]} 26. Rxb1 {[%clk 0:01:50.1]}
26... Rxb1+ {[%clk 0:01:15.6]} 27. Kg2 {[%clk 0:01:51]} 27... c3 {[%clk
0:01:15.2]} 28. Be4 {[%clk 0:01:48.9]} 28... Bf1+ {[%clk 0:01:08.3]} 29. Kf3
{[%clk 0:01:47.7]} 29... Qh3 {[%clk 0:01:04.9]} 30. Bxb1 {[%clk 0:01:40.3]}
30... Qh1+ {[%clk 0:00:51.4]} 31. Ke3 {[%clk 0:01:38.9]} 31... Bg2 {[%clk
0:00:51.2]} 32. Rxe7 {[%clk 0:01:32.2]} 32... Qe1+ {[%clk 0:00:36.8]} 33. Kd4
{[%clk 0:01:28.7]} 33... Qxe7 {[%clk 0:00:37.3]} 34. d6 {[%clk 0:01:23.8]} 34...
Qe1 {[%clk 0:00:37.2]} 35. d7 {[%clk 0:01:14.8]} 35... Qd1+ {[%clk 0:00:25.4]}
36. Kxc3 {[%clk 0:01:14.8]} 36... Qxd7 {[%clk 0:00:24.5]} 37. Qb8+ {[%clk
0:01:14.2]} 37... Kh7 {[%clk 0:00:22]} 38. Qb4 {[%clk 0:01:06.6]} 38... Bd5
{[%clk 0:00:20.4]} 39. Bd3 {[%clk 0:01:02.9]} 39... Be6 {[%clk 0:00:20.2]} 40.
Qd4 {[%clk 0:01:01]} 40... Qc7+ {[%clk 0:00:20.1]} 41. Kd2 {[%clk 0:00:56.9]}
41... Qa5+ {[%clk 0:00:20.1]} 42. Ke3 {[%clk 0:00:56]} 42... Bb3 {[%clk
0:00:19.5]} 43. Bb5 {[%clk 0:00:53]} 43... Qe1+ {[%clk 0:00:19.3]} 44. Kf4
{[%clk 0:00:51.5]} 44... Qc1+ {[%clk 0:00:18.6]} 45. Qe3 {[%clk 0:00:47.5]}
45... Qc7+ {[%clk 0:00:18.1]} 46. Qe5 {[%clk 0:00:47.5]} 46... Qc2 {[%clk
0:00:17]} 47. Qd4 {[%clk 0:00:43.4]} 47... Be6 {[%clk 0:00:15.7]} 48. Qxa7
{[%clk 0:00:40.6]} 48... Qf5+ {[%clk 0:00:12.7]} 49. Ke3 {[%clk 0:00:40.8]}
49... Qe5+ {[%clk 0:00:13.3]} 50. Kd2 {[%clk 0:00:40.8]} 50... Qb2+ {[%clk
0:00:12.8]} 51. Ke3 {[%clk 0:00:40.8]} 51... Qb3+ {[%clk 0:00:13.3]} 52. Kd4
{[%clk 0:00:37.6]} 52... Qb4+ {[%clk 0:00:13.5]} 53. Ke5 {[%clk 0:00:35.5]}
53... Qe1+ {[%clk 0:00:13.6]} 54. Kf6 {[%clk 0:00:31.5]} 54... Qc3+ {[%clk
0:00:13]} 55. Ke7 {[%clk 0:00:31.6]} 55... Qb4+ {[%clk 0:00:11.4]} 56. Ke8
{[%clk 0:00:30.2]} 56... Kg8 {[%clk 0:00:10.7]} 57. Qe3 {[%clk 0:00:20.7]} 57...
Qf8# {[%clk 0:00:09.7]} 0-1

[Event "Late-Titled-Tuesday-Blitz-February-27-2024"]
[Site "Chess.com"]
[Date "2024.02.27"]
[Round "8"]
[White "HeinichessPY"]
[Black "lagedema"]
[Result "0-1"]
[WhiteElo "2244"]
[BlackElo "2422"]
[TimeControl "180+1"]
[EndTime "15:27:43 PST"]
[Termination "lagedema won by resignation"]

1. Nf3 {[%clk 0:02:59.6]} 1... d5 {[%clk 0:02:57.5]} 2. g3 {[%clk 0:02:58.9]}
2... e6 {[%clk 0:02:58]} 3. Bg2 {[%clk 0:02:59.1]} 3... Nf6 {[%clk 0:02:58.9]}
4. O-O {[%clk 0:02:59.1]} 4... Be7 {[%clk 0:02:59.8]} 5. c4 {[%clk 0:02:54.8]}
5... O-O {[%clk 0:02:57.6]} 6. Nc3 {[%clk 0:02:47]} 6... d4 {[%clk 0:02:52.9]}
7. Nb1 {[%clk 0:02:46.3]} 7... c5 {[%clk 0:02:53.8]} 8. d3 {[%clk 0:02:46.8]}
8... Nc6 {[%clk 0:02:49.8]} 9. a3 {[%clk 0:02:32.5]} 9... a5 {[%clk 0:02:48.2]}
10. b3 {[%clk 0:02:31.2]} 10... e5 {[%clk 0:02:44.9]} 11. Ne1 {[%clk 0:02:31.3]}
11... Qb6 {[%clk 0:02:33.8]} 12. Nd2 {[%clk 0:02:29.3]} 12... h6 {[%clk
0:02:31.8]} 13. Rb1 {[%clk 0:02:28.9]} 13... Bf5 {[%clk 0:02:29.1]} 14. Nc2
{[%clk 0:02:28.4]} 14... Rfd8 {[%clk 0:02:26.2]} 15. h3 {[%clk 0:02:11.8]} 15...
Bh7 {[%clk 0:02:04.5]} 16. Kh2 {[%clk 0:01:51.8]} 16... Qc7 {[%clk 0:01:45.6]}
17. Ne1 {[%clk 0:01:28.6]} 17... Ra6 {[%clk 0:01:31.4]} 18. Ne4 {[%clk
0:01:27.5]} 18... Ne8 {[%clk 0:01:22.9]} 19. Bd2 {[%clk 0:01:19.9]} 19... f5
{[%clk 0:01:21.3]} 20. Nxc5 {[%clk 0:01:16]} 20... Bxc5 {[%clk 0:01:18.9]} 21.
b4 {[%clk 0:01:16.4]} 21... axb4 {[%clk 0:01:16.4]} 22. axb4 {[%clk 0:01:17.3]}
22... Bf8 {[%clk 0:01:09.6]} 23. b5 {[%clk 0:01:16.5]} 23... Ra3 {[%clk
0:01:02.4]} 24. bxc6 {[%clk 0:01:12.4]} 24... bxc6 {[%clk 0:01:03.3]} 25. Nc2
{[%clk 0:00:57.4]} 25... Ra2 {[%clk 0:00:54]} 26. Nb4 {[%clk 0:00:56.3]} 26...
Bxb4 {[%clk 0:00:54.2]} 27. Rxb4 {[%clk 0:00:48.3]} 27... c5 {[%clk 0:00:51.2]}
28. Rb5 {[%clk 0:00:40]} 28... Nd6 {[%clk 0:00:46]} 29. Bd5+ {[%clk 0:00:40.4]}
29... Kh8 {[%clk 0:00:45.2]} 30. Rb3 {[%clk 0:00:39.9]} 30... Bg8 {[%clk
0:00:36.6]} 31. Bxg8 {[%clk 0:00:33.3]} 31... Rxg8 {[%clk 0:00:34.9]} 32. Qc1
{[%clk 0:00:30.2]} 32... Kh7 {[%clk 0:00:32]} 33. Rd1 {[%clk 0:00:25.7]} 33...
Rga8 {[%clk 0:00:28.4]} 34. Rb2 {[%clk 0:00:21.9]} 34... Rxb2 {[%clk 0:00:20]}
35. Qxb2 {[%clk 0:00:22.3]} 35... Qc6 {[%clk 0:00:19.4]} 36. Rb1 {[%clk
0:00:22.8]} 36... e4 {[%clk 0:00:17]} 37. Qb6 {[%clk 0:00:22.8]} 37... Qxb6
{[%clk 0:00:16.6]} 38. Rxb6 {[%clk 0:00:23.3]} 38... Nc8 {[%clk 0:00:16.8]} 39.
Rc6 {[%clk 0:00:23.2]} 39... Ra2 {[%clk 0:00:17.7]} 40. Bf4 {[%clk 0:00:21]}
40... Ne7 {[%clk 0:00:16.7]} 41. Rc7 {[%clk 0:00:21.5]} 41... Ng6 {[%clk
0:00:16.3]} 42. Rxc5 {[%clk 0:00:19.5]} 42... Rxe2 {[%clk 0:00:16.2]} 43. dxe4
{[%clk 0:00:18.7]} 43... Nxf4 {[%clk 0:00:15.3]} 44. gxf4 {[%clk 0:00:17]} 44...
fxe4 {[%clk 0:00:16.2]} 45. Rd5 {[%clk 0:00:17.4]} 45... d3 {[%clk 0:00:16.4]}
46. c5 {[%clk 0:00:17.9]} 46... Rxf2+ {[%clk 0:00:16.3]} 47. Kg3 {[%clk
0:00:18.4]} 47... Rc2 {[%clk 0:00:17.2]} 48. f5 {[%clk 0:00:17.6]} 48... d2
{[%clk 0:00:17.4]} 49. Kf2 {[%clk 0:00:17.2]} 49... d1=Q+ {[%clk 0:00:16.7]} 50.
Kg3 {[%clk 0:00:16.5]} 50... Qxd5 {[%clk 0:00:17.6]} 51. Kf4 {[%clk 0:00:16.1]}
51... Rxc5 {[%clk 0:00:18.1]} 0-1

[Event "Late-Titled-Tuesday-Blitz-February-27-2024"]
[Site "Chess.com"]
[Date "2024.02.27"]
[Round "8"]
[White "TenisMaster"]
[Black "Grischuk"]
[Result "0-1"]
[WhiteElo "2928"]
[BlackElo "3051"]
[TimeControl "180+1"]
[EndTime "15:27:47 PST"]
[Termination "Grischuk won on time"]

1. e4 {[%clk 0:03:00.9]} 1... e5 {[%clk 0:03:00.3]} 2. Nf3 {[%clk 0:03:00.7]}
2... Nc6 {[%clk 0:03:01]} 3. Bb5 {[%clk 0:03:00.9]} 3... Nf6 {[%clk 0:03:01.3]}
4. d3 {[%clk 0:02:57]} 4... Bc5 {[%clk 0:03:01.1]} 5. c3 {[%clk 0:02:56.4]} 5...
O-O {[%clk 0:03:00.7]} 6. O-O {[%clk 0:02:56.6]} 6... d6 {[%clk 0:03:00.6]} 7.
Nbd2 {[%clk 0:02:54.9]} 7... Ne7 {[%clk 0:03:00.3]} 8. Re1 {[%clk 0:02:50.1]}
8... c6 {[%clk 0:02:55.3]} 9. Ba4 {[%clk 0:02:49.5]} 9... Ng6 {[%clk 0:02:55]}
10. d4 {[%clk 0:02:44.7]} 10... Bb6 {[%clk 0:02:51.6]} 11. Bc2 {[%clk
0:02:43.9]} 11... Re8 {[%clk 0:02:43.1]} 12. Nc4 {[%clk 0:02:39.3]} 12... Bc7
{[%clk 0:02:41.9]} 13. dxe5 {[%clk 0:02:29.5]} 13... dxe5 {[%clk 0:02:31.4]} 14.
Qxd8 {[%clk 0:02:27.5]} 14... Rxd8 {[%clk 0:02:32.3]} 15. Bg5 {[%clk 0:02:27.3]}
15... Bg4 {[%clk 0:02:20.4]} 16. Bxf6 {[%clk 0:02:19.2]} 16... gxf6 {[%clk
0:02:18.8]} 17. Bd1 {[%clk 0:02:15]} 17... Nf4 {[%clk 0:02:12.5]} 18. Ne3 {[%clk
0:02:14.7]} 18... Be6 {[%clk 0:02:12.4]} 19. Bb3 {[%clk 0:02:09.6]} 19... Bb6
{[%clk 0:02:11.4]} 20. Rad1 {[%clk 0:01:58.1]} 20... Nd3 {[%clk 0:01:58]} 21.
Re2 {[%clk 0:01:58.1]} 21... Bxe3 {[%clk 0:01:58.5]} 22. fxe3 {[%clk 0:01:57.3]}
22... Nc5 {[%clk 0:01:56.2]} 23. Rxd8+ {[%clk 0:01:40.4]} 23... Rxd8 {[%clk
0:01:55.6]} 24. Bxe6 {[%clk 0:01:40.4]} 24... Rd1+ {[%clk 0:01:43.7]} 25. Re1
{[%clk 0:01:30.8]} 25... Rxe1+ {[%clk 0:01:44.1]} 26. Nxe1 {[%clk 0:01:31.5]}
26... fxe6 {[%clk 0:01:44.8]} 27. Kf2 {[%clk 0:01:28.6]} 27... Nxe4+ {[%clk
0:01:45.1]} 28. Ke2 {[%clk 0:01:29.1]} 28... Kf7 {[%clk 0:01:42.3]} 29. Nd3
{[%clk 0:01:29.2]} 29... Ke7 {[%clk 0:01:36.8]} 30. g3 {[%clk 0:01:20]} 30...
Kd6 {[%clk 0:01:35.7]} 31. Ne1 {[%clk 0:01:07.5]} 31... f5 {[%clk 0:01:24.6]}
32. Nf3 {[%clk 0:01:00.1]} 32... b5 {[%clk 0:01:24.1]} 33. Ne1 {[%clk
0:00:47.9]} 33... a5 {[%clk 0:01:23.1]} 34. Nc2 {[%clk 0:00:44.3]} 34... a4
{[%clk 0:01:09.7]} 35. Kd3 {[%clk 0:00:41.9]} 35... Nf2+ {[%clk 0:00:53.3]} 36.
Ke2 {[%clk 0:00:41.9]} 36... Ng4 {[%clk 0:00:54.2]} 37. e4 {[%clk 0:00:31.8]}
37... Nxh2 {[%clk 0:00:45.6]} 38. exf5 {[%clk 0:00:22.3]} 38... exf5 {[%clk
0:00:46.5]} 39. b3 {[%clk 0:00:19.3]} 39... Ng4 {[%clk 0:00:38.8]} 40. Kf3
{[%clk 0:00:16.7]} 40... h5 {[%clk 0:00:36.4]} 41. Ke2 {[%clk 0:00:16.5]} 41...
Nf6 {[%clk 0:00:35.6]} 42. Ne3 {[%clk 0:00:15.6]} 42... axb3 {[%clk 0:00:31.4]}
43. axb3 {[%clk 0:00:14.4]} 43... Ke6 {[%clk 0:00:32.3]} 44. c4 {[%clk
0:00:12.6]} 44... Ne4 {[%clk 0:00:31.6]} 45. cxb5 {[%clk 0:00:11]} 45... cxb5
{[%clk 0:00:32.5]} 46. Nf1 {[%clk 0:00:10.3]} 46... Kd6 {[%clk 0:00:24.8]} 47.
Kd3 {[%clk 0:00:08.9]} 47... Kc5 {[%clk 0:00:22.6]} 48. Kc2 {[%clk 0:00:02.8]}
48... Kd4 {[%clk 0:00:22.2]} 49. Kb2 {[%clk 0:00:01.3]} 49... Kd3 {[%clk
0:00:14.8]} 50. Ka3 {[%clk 0:00:01.6]} 50... Ke2 {[%clk 0:00:15]} 0-1